bitfinex/quotes_BTCUSD_20240728
["timestamp","ask_amount","ask_price","bid_price","bid_amount"]
[1722143534280,0.1234369,67345.0,67341.0,0.237594]
[1722143534513,0.1234369,67345.0,67342.0,0.118795]
[1722143534751,0.01238292,67344.0,67342.0,0.118795]
[1722143534972,0.01238292,67344.0,67343.0,0.118794]
[1722143535210,0.01238292,67344.0,67338.0,0.237607]
[1722143535406,0.0767,67346.0,67339.0,0.239602]
[1722143535709,0.01238006,67343.0,67342.0,0.118796]
[1722143535938,0.0767,67346.0,67342.0,0.118796]
[1722143536184,0.01238107,67343.0,67342.0,0.007]
[1722143536440,0.0767,67346.0,67342.0,0.118795]
[1722143536694,0.01238107,67343.0,67342.0,0.118795]
[1722143536915,0.0767,67346.0,67342.0,0.118795]
[1722143537150,0.0767,67346.0,67343.0,0.118794]
[1722143537151,0.12343271,67345.0,67343.0,0.118794]
[1722143537420,0.0767,67346.0,67343.0,0.118794]
[1722143537909,0.0767,67346.0,67340.0,0.237598]
[1722143538156,0.1234326,67345.0,67343.0,0.118794]
[1722143538411,0.0767,67346.0,67343.0,0.118794]
[1722143538639,0.0767,67346.0,67341.0,0.237595]
[1722143538640,0.0767,67346.0,67341.0,0.118796]
[1722143538869,0.0767,67346.0,67339.0,0.237602]
[1722143538870,0.0767,67346.0,67343.0,0.005]
[1722143539352,0.0767,67346.0,67327.0,0.1]
[1722143539585,0.0767,67346.0,67344.0,0.118792]
[1722143539834,0.0767,67346.0,67342.0,0.237592]
[1722143540081,0.237541,67357.0,67342.0,0.237592]
[1722143540082,0.118786,67348.0,67342.0,0.118795]
[1722143540321,0.083,67352.0,67345.0,0.11879]
[1722143540552,0.001,67346.0,67345.0,0.593954]
[1722143540785,0.001,67346.0,67345.0,0.356372]
[1722143541503,0.001,67346.0,67345.0,0.831536]
[1722143541759,0.00083,67358.0,67357.0,0.11877]
[1722143542000,0.00083,67358.0,67357.0,0.35631]
[1722143542230,0.00083,67358.0,67357.0,0.37931]
[1722143542966,0.00083,67358.0,67355.0,0.237546]
[1722143543197,0.00083,67358.0,67346.0,0.15025957]
[1722143543198,0.00083,67358.0,67352.0,0.1442]
[1722143543443,0.01128026,67358.0,67357.0,0.59385]
[1722143543674,0.00083,67358.0,67357.0,0.86239]
[1722143544753,0.00083,67358.0,67357.0,1.01864957]
[1722143544961,0.00083,67358.0,67357.0,1.00464957]
[1722143545164,0.00083,67358.0,67357.0,1.01864957]
[1722143545401,0.00083,67358.0,67357.0,1.55728957]
[1722143545629,0.00083,67358.0,67357.0,1.65728957]
[1722143545911,0.00083,67358.0,67357.0,1.67128957]
[1722143546153,0.00084,67364.0,67360.0,0.002]
[1722143546374,0.00084,67364.0,67363.0,1.131635]
[1722143546626,0.00084,67364.0,67363.0,1.38189457]
[1722143546858,0.00084,67364.0,67363.0,1.48629457]
[1722143547058,0.00084,67364.0,67363.0,1.64319457]
[1722143547233,0.00837,67370.0,67369.0,0.831239]
[1722143547461,0.00837,67370.0,67369.0,1.40479557]
[1722143548168,0.00837,67370.0,67369.0,0.92980157]
[1722143548799,0.00837,67370.0,67369.0,0.94380157]
[1722143549316,0.127117,67370.0,67369.0,0.028]
[1722143549520,0.127117,67370.0,67369.0,0.132748]
[1722143549521,0.00837,67370.0,67369.0,0.132748]
[1722143549727,0.02095889,67370.0,67369.0,0.028]
[1722143549962,0.127117,67370.0,67369.0,0.028]
[1722143550195,0.0209607,67370.0,67369.0,0.014]
[1722143550681,0.3772017,67370.0,67369.0,0.014]
[1722143550993,0.0209607,67370.0,67365.0,0.118755]
[1722143551084,0.0209607,67370.0,67357.0,0.00884784]
[1722143551319,0.0209607,67370.0,67369.0,0.013]
[1722143551540,0.0209607,67370.0,67369.0,0.132748]
[1722143551749,0.0209607,67370.0,67369.0,0.027]
[1722143551951,0.0209607,67370.0,67369.0,0.013]
[1722143552182,0.0209607,67370.0,67369.0,0.356245]
[1722143552383,0.0209607,67370.0,67369.0,0.593742]
[1722143552783,0.00837,67370.0,67369.0,0.593742]
[1722143553194,0.00837,67370.0,67369.0,1.01149857]
[1722143553549,0.00837,67370.0,67369.0,1.07429857]
[1722143553956,0.00837,67370.0,67369.0,1.08729857]
[1722143554380,0.00837,67370.0,67369.0,1.07429857]
[1722143554737,0.00837,67370.0,67369.0,1.18129857]
[1722143555571,0.00837,67370.0,67369.0,1.17829857]
[1722143555743,0.00837,67370.0,67369.0,1.19229857]
[1722143555922,0.00837,67370.0,67369.0,1.19023345]
[1722143556297,0.00837,67370.0,67369.0,1.20423345]
[1722143557645,0.00837,67370.0,67369.0,1.17623345]
[1722143557792,0.00837,67370.0,67369.0,1.19023345]
[1722143557991,0.00837,67370.0,67369.0,1.20423345]
[1722143558191,0.00837,67370.0,67369.0,1.42773045]
[1722143558400,0.00837,67370.0,67369.0,1.41373045]
[1722143558662,0.00837,67370.0,67369.0,1.44173045]
[1722143563867,0.00837,67370.0,67369.0,1.60063045]
[1722143564312,0.00837,67370.0,67369.0,1.91812745]
[1722143564523,0.002,67379.0,67374.0,0.002]
[1722143564727,0.00837,67383.0,67382.0,0.67363]
[1722143564926,0.00837,67383.0,67382.0,1.16334157]
[1722143565074,0.00837,67383.0,67382.0,1.18634157]
[1722143565275,0.00837,67383.0,67382.0,1.18434157]
[1722143565941,0.00837,67383.0,67382.0,0.62943757]
[1722143566247,0.08517,67383.0,67382.0,0.86688957]
[1722143566601,0.00837,67383.0,67382.0,0.86688957]
[1722143566803,0.00837,67383.0,67382.0,1.10434157]
[1722143567604,0.00837,67383.0,67382.0,1.16594157]
[1722143567805,0.00837,67383.0,67382.0,1.48339357]
[1722143568006,0.00837,67383.0,67382.0,1.87073523]
[1722143568666,0.00837,67383.0,67382.0,2.02763523]
[1722143568887,0.00837,67383.0,67382.0,2.01363523]
[1722143569102,0.00837,67383.0,67382.0,2.02763523]
[1722143569776,0.00837,67383.0,67382.0,1.80418323]
[1722143570005,0.00837,67383.0,67382.0,1.41684157]
[1722143570124,0.00837,67383.0,67382.0,1.17994157]
[1722143570621,0.00837,67383.0,67382.0,0.456178]
[1722143570854,0.00837,67383.0,67382.0,0.484178]
[1722143570855,0.02784466,67383.0,67382.0,0.484178]
[1722143571118,0.02784466,67383.0,67382.0,0.73057265]
[1722143571293,0.02784466,67383.0,67382.0,0.88083222]
[1722143571464,0.00837,67383.0,67382.0,1.09028422]
[1722143571901,0.00837,67383.0,67382.0,1.10428422]
[1722143572122,0.00837,67383.0,67382.0,0.88983222]
[1722143572344,0.00837,67383.0,67382.0,0.87583222]
[1722143573005,0.00837,67383.0,67382.0,0.88983222]
[1722143573244,0.00837,67383.0,67382.0,0.87583222]
[1722143573476,0.00837,67383.0,67382.0,1.12728422]
[1722143574497,0.00837,67383.0,67382.0,0.88983222]
[1722143574711,0.00837,67383.0,67382.0,0.90383222]
[1722143575640,0.00837,67383.0,67382.0,1.14128422]
[1722143575854,0.00837,67383.0,67382.0,0.90383222]
[1722143576066,0.00837,67383.0,67382.0,1.14128422]
[1722143579777,0.00837,67383.0,67382.0,0.90383222]
[1722143579995,0.00837,67383.0,67382.0,0.73957265]
[1722143580423,0.00837,67383.0,67382.0,1.14128422]
[1722143580653,0.00837,67383.0,67382.0,1.12728422]
[1722143580877,0.00837,67383.0,67382.0,1.14128422]
[1722143581106,0.00837,67383.0,67382.0,1.11328422]
[1722143581587,0.00837,67383.0,67379.0,0.000924]
[1722143581588,0.356188,67380.0,67379.0,0.000924]
[1722143581817,0.0757,67382.0,67381.0,0.118727]
[1722143582045,0.00837,67383.0,67382.0,0.118726]
[1722143582282,0.02785656,67383.0,67382.0,0.98430928]
[1722143582508,0.00837,67383.0,67382.0,0.98134157]
[1722143583194,0.00837,67383.0,67382.0,1.10434157]
[1722143583420,0.00837,67383.0,67382.0,0.88088957]
[1722143583625,0.00837,67383.0,67382.0,0.86688957]
[1722143584020,0.00837,67383.0,67382.0,0.88088957]
[1722143584238,0.00837,67383.0,67382.0,0.64343757]
[1722143584471,0.00837,67383.0,67382.0,0.65743757]
[1722143584921,0.00837,67383.0,67382.0,0.86688957]
[1722143585154,0.00837,67383.0,67382.0,0.88088957]
[1722143585616,0.00837,67383.0,67382.0,0.65743757]
[1722143587290,0.00837,67383.0,67382.0,0.64343757]
[1722143587749,0.00837,67383.0,67382.0,0.55743757]
[1722143588768,0.08407,67383.0,67382.0,0.028]
[1722143589220,0.10443926,67383.0,67382.0,0.028]
[1722143589422,0.76405926,67383.0,67382.0,0.028]
[1722143589625,1.00150726,67383.0,67382.0,0.028]
[1722143590307,1.00150726,67383.0,67379.0,0.000924]
[1722143590308,1.068565,67380.0,67379.0,0.000924]
[1722143590507,0.686097,67363.0,67354.0,0.45077872]
[1722143590921,0.70641679,67363.0,67353.0,0.059491]
[1722143591125,0.70641679,67363.0,67351.0,0.11878]
[1722143591560,0.94393579,67363.0,67347.0,0.00906675]
[1722143591750,0.94393579,67363.0,67350.0,0.118781]
[1722143591995,0.94393579,67363.0,67348.0,0.00296929]
[1722143591996,0.70641679,67363.0,67349.0,0.118783]
[1722143592172,0.70641679,67363.0,67362.0,0.031]
[1722143592701,0.94393579,67363.0,67362.0,0.031]
[1722143592929,0.94393579,67363.0,67362.0,0.032]
[1722143592930,0.95793579,67363.0,67362.0,0.032]
[1722143593393,0.94393579,67363.0,67362.0,0.03]
[1722143593612,0.94393579,67363.0,67362.0,0.032]
[1722143593613,0.95193579,67363.0,67362.0,0.032]
[1722143593837,0.96493579,67363.0,67362.0,0.032]
[1722143594091,0.95693579,67363.0,67362.0,0.031]
[1722143594324,0.72741679,67363.0,67362.0,0.032]
[1722143594585,0.48989779,67363.0,67362.0,0.032]
[1722143595037,0.72741679,67363.0,67362.0,0.032]
[1722143595275,0.13361979,67363.0,67362.0,0.032]
[1722143595513,0.11701979,67363.0,67362.0,0.032]
[1722143595774,0.71081679,67363.0,67362.0,0.032]
[1722143596240,0.69781679,67363.0,67362.0,0.031]
[1722143596437,0.69781679,67363.0,67362.0,0.03]
[1722143596915,0.70081679,67363.0,67362.0,0.03]
[1722143597117,0.45529779,67363.0,67362.0,0.03]
[1722143597323,0.23377879,67363.0,67362.0,0.03]
[1722143597779,0.21477879,67363.0,67362.0,0.03]
[1722143597929,0.45229779,67363.0,67362.0,0.03]
[1722143598133,0.22277879,67363.0,67362.0,0.03]
[1722143598333,0.22577879,67363.0,67362.0,0.03]
[1722143598544,0.10701979,67363.0,67362.0,0.148761]
[1722143598748,0.03131979,67363.0,67362.0,0.148761]
[1722143598914,0.011,67363.0,67362.0,0.148761]
[1722143599115,0.03110301,67363.0,67362.0,0.148761]
[1722143599315,0.1496,67363.0,67362.0,0.03]
[1722143599543,0.92572668,67363.0,67362.0,0.03]
[1722143599716,1.14828568,67363.0,67362.0,0.03]
[1722143599921,1.14928568,67363.0,67362.0,0.03]
[1722143600393,1.15428568,67363.0,67362.0,0.031]
[1722143600592,1.15528568,67363.0,67362.0,0.037]
[1722143600768,1.14928568,67363.0,67362.0,0.036]
[1722143600907,1.14928568,67363.0,67362.0,0.03]
[1722143601105,1.16228568,67363.0,67362.0,0.031]
[1722143601317,1.16228568,67363.0,67362.0,0.032]
[1722143601318,1.17328568,67363.0,67362.0,0.032]
[1722143602552,1.14828568,67363.0,67362.0,0.03]
[1722143602917,1.16028568,67363.0,67362.0,0.031]
[1722143603232,0.54298811,67363.0,67362.0,0.032]
[1722143603399,0.78050711,67363.0,67362.0,0.031]
[1722143603602,0.78850711,67363.0,67362.0,0.032]
[1722143603826,0.78050711,67363.0,67362.0,0.031]
[1722143603969,0.76850711,67363.0,67362.0,0.03]
[1722143604164,0.77550711,67363.0,67362.0,0.031]
[1722143604394,0.12091011,67363.0,67362.0,0.150761]
[1722143605334,0.03911011,67363.0,67362.0,0.625805]
[1722143605539,0.02711011,67363.0,67362.0,0.624805]
[1722143605739,0.012,67363.0,67362.0,0.862327]
[1722143606086,0.008,67363.0,67362.0,0.624805]
[1722143606335,0.273359,67363.0,67362.0,0.031]
[1722143606529,0.741397,67363.0,67362.0,0.036]
[1722143606732,0.76151127,67363.0,67362.0,0.03]
[1722143606950,0.76251127,67363.0,67362.0,0.036]
[1722143607302,0.76151127,67363.0,67362.0,0.03]
[1722143607502,0.77251127,67363.0,67362.0,0.031]
[1722143608803,0.77251127,67363.0,67362.0,0.03]
[1722143609005,0.76451127,67363.0,67362.0,0.030924]
[1722143609228,0.52699227,67363.0,67362.0,0.030924]
[1722143609480,0.52299227,67363.0,67362.0,0.034924]
[1722143609628,0.52299227,67363.0,67362.0,0.044924]
[1722143609838,0.52399227,67363.0,67362.0,0.044924]
[1722143610476,1.14928984,67363.0,67362.0,0.044924]
[1722143610677,1.25438427,67363.0,67362.0,0.044924]
[1722143610884,1.20281322,67363.0,67362.0,0.044924]
[1722143611872,1.20281322,67363.0,67362.0,0.040924]
[1722143612512,1.21581322,67363.0,67362.0,0.041924]
[1722143612722,1.21481322,67363.0,67362.0,0.031924]
[1722143612928,1.20181322,67363.0,67362.0,0.030924]
[1722143613337,1.20181322,67363.0,67362.0,0.031924]
[1722143613338,1.21481322,67363.0,67362.0,0.031924]
[1722143613637,1.22781322,67363.0,67362.0,0.032924]
[1722143613868,1.20181322,67363.0,67362.0,0.030924]
[1722143614252,1.21281322,67363.0,67362.0,0.031924]
[1722143614453,1.21281322,67363.0,67362.0,0.030924]
[1722143615756,1.21281322,67363.0,67362.0,0.032924]
[1722143615757,0.37299665,67363.0,67362.0,0.032924]
[1722143615951,0.84803465,67363.0,67362.0,0.032924]
[1722143616157,1.12179398,67363.0,67362.0,0.032924]
[1722143616356,1.12179398,67363.0,67362.0,0.031924]
[1722143616357,1.10879398,67363.0,67362.0,0.031924]
[1722143616616,1.08779398,67363.0,67362.0,0.031924]
[1722143616942,1.10979398,67363.0,67362.0,0.032924]
[1722143617154,1.09679398,67363.0,67362.0,0.031924]
[1722143617562,1.10979398,67363.0,67362.0,0.032924]
[1722143618173,1.11006588,67363.0,67362.0,0.032924]
[1722143618584,1.64810224,67363.0,67362.0,0.032924]
[1722143618798,1.55508277,67363.0,67362.0,0.032924]
[1722143619121,1.79260177,67363.0,67362.0,0.032924]
[1722143620358,1.64087703,67363.0,67362.0,0.032924]
[1722143620581,1.79219138,67363.0,67362.0,0.032924]
[1722143620957,1.84714288,67363.0,67362.0,0.032924]
[1722143621349,1.57352382,67363.0,67362.0,0.032924]
[1722143621547,1.79209592,67363.0,67362.0,0.032924]
[1722143623252,1.83573602,67363.0,67362.0,0.032924]
[1722143623686,1.79209592,67363.0,67362.0,0.032924]
[1722143624390,1.85766347,67363.0,67362.0,0.032924]
[1722143624617,2.0951765,67363.0,67362.0,0.032924]
[1722143624814,0.670182,67342.0,67341.0,7.449e-05]
[1722143625020,1.05803457,67342.0,67341.0,7.449e-05]
[1722143625223,1.40316617,67342.0,67341.0,7.449e-05]
[1722143625401,1.69172761,67342.0,67341.0,7.449e-05]
[1722143625989,1.69872761,67342.0,67341.0,0.00107449]
[1722143626429,1.69172761,67342.0,67341.0,7.449e-05]
[1722143626559,1.69372761,67342.0,67341.0,7.449e-05]
[1722143626761,1.69372761,67342.0,67341.0,0.00107449]
[1722143626762,1.7436974,67342.0,67341.0,0.00107449]
[1722143627228,1.7456974,67342.0,67341.0,0.00107449]
[1722143627788,1.70272761,67342.0,67341.0,0.00107449]
[1722143627969,1.72995716,67342.0,67341.0,0.00107449]
[1722143628171,1.72333109,67342.0,67341.0,7.449e-05]
[1722143628375,1.72133109,67342.0,67341.0,7.449e-05]
[1722143628583,1.43192898,67342.0,67341.0,7.449e-05]
[1722143628739,1.71310366,67342.0,67341.0,7.449e-05]
[1722143628938,1.47551066,67342.0,67341.0,7.449e-05]
[1722143629142,1.42454222,67342.0,67341.0,7.449e-05]
[1722143630568,1.42438579,67342.0,67341.0,7.449e-05]
[1722143632365,1.18679279,67342.0,67341.0,7.449e-05]
[1722143632567,0.74445062,67342.0,67341.0,7.449e-05]
[1722143632921,0.98204362,67342.0,67341.0,7.449e-05]
[1722143634118,0.50685762,67342.0,67341.0,7.449e-05]
[1722143634310,0.66825062,67342.0,67341.0,7.449e-05]
[1722143634697,0.90591253,67342.0,67341.0,7.449e-05]
[1722143635280,0.16167096,67342.0,67341.0,7.449e-05]
[1722143636238,0.14867096,67342.0,67341.0,7.449e-05]
[1722143636573,0.14667096,67342.0,67341.0,0.11887249]
[1722143636774,0.14667096,67342.0,67341.0,7.449e-05]
[1722143636981,0.14767096,67342.0,67341.0,7.449e-05]
[1722143637581,0.14767096,67342.0,67341.0,0.11887249]
[1722143637787,0.14767096,67342.0,67341.0,0.35646849]
[1722143637788,0.14769883,67342.0,67341.0,0.35646849]
[1722143637963,0.02580959,67342.0,67341.0,0.73486449]
[1722143638164,0.007,67342.0,67341.0,0.97246049]
[1722143638759,0.05120007,67360.0,67349.0,0.118783]
[1722143638959,0.05120007,67360.0,67350.0,0.118781]
[1722143638960,0.118773,67356.0,67350.0,0.118781]
[1722143639168,0.12155786,67355.0,67352.0,0.118778]
[1722143639374,0.12155786,67354.0,67353.0,0.0623]
[1722143639578,0.14019048,67354.0,67353.0,0.181077]
[1722143639984,0.14019048,67354.0,67353.0,0.0623]
[1722143641265,0.25896548,67354.0,67353.0,0.0623]
[1722143641470,0.25896548,67354.0,67348.0,0.118785]
[1722143641471,0.118778,67353.0,67349.0,0.0623]
[1722143641627,0.12155786,67352.0,67349.0,0.0623]
[1722143641827,0.12155786,67351.0,67349.0,0.0623]
[1722143642275,0.12155786,67351.0,67349.0,0.181084]
[1722143642544,0.14034184,67350.0,67349.0,0.181084]
[1722143642972,0.14034184,67350.0,67349.0,0.0623]
[1722143643182,0.237575,67348.0,67341.0,0.14179849]
[1722143643399,0.237575,67348.0,67342.0,0.118796]
[1722143643400,0.12112852,67347.0,67342.0,0.118796]
[1722143643572,0.13981361,67347.0,67342.0,0.118796]
[1722143643769,0.12102852,67346.0,67342.0,0.118796]
[1722143643977,0.12102852,67346.0,67341.0,0.14179849]
[1722143643978,0.1398132,67346.0,67341.0,0.14179849]
[1722143644178,0.01878468,67346.0,67342.0,0.118796]
[1722143644375,0.13757368,67346.0,67341.0,0.26059649]
[1722143644571,0.13757368,67346.0,67341.0,0.14179849]
[1722143644775,0.237582,67345.0,67341.0,0.06329849]
[1722143645020,0.13757982,67345.0,67341.0,0.06329849]
[1722143645191,0.118796,67342.0,67341.0,0.06329849]
[1722143645391,0.01878782,67345.0,67341.0,0.06729849]
[1722143645630,0.01879288,67342.0,67341.0,0.06729849]
[1722143645799,0.118793,67344.0,67341.0,0.06329849]
[1722143645955,0.01879178,67342.0,67341.0,0.06729849]
[1722143646156,0.118793,67344.0,67341.0,0.06729849]
[1722143646364,0.01978838,67342.0,67341.0,0.06729849]
[1722143646560,0.001,67342.0,67341.0,0.06729849]
[1722143646761,0.01978838,67342.0,67341.0,0.06329849]
[1722143646972,0.01978838,67342.0,67341.0,0.41969249]
[1722143647171,0.02078838,67342.0,67341.0,0.66128849]
[1722143647396,0.002,67342.0,67341.0,0.66128849]
[1722143647602,0.001,67342.0,67341.0,0.66128849]
[1722143649437,0.002,67342.0,67341.0,0.66128849]
[1722143650601,0.002,67342.0,67341.0,1.36524006]
[1722143650781,0.002,67342.0,67341.0,1.48824006]
[1722143651358,0.00084,67362.0,67341.0,1.48824006]
[1722143651359,0.0023942,67362.0,67361.0,0.118763]
[1722143651536,0.00084,67362.0,67361.0,0.734615]
[1722143651880,0.00084,67362.0,67361.0,0.972141]
[1722143652560,0.00084,67362.0,67361.0,1.12240057]
[1722143652762,0.00084,67362.0,67361.0,1.14540057]
[1722143653323,0.00084,67362.0,67361.0,0.995141]
[1722143653741,0.00084,67362.0,67361.0,0.497089]
[1722143653964,0.00084,67362.0,67361.0,0.511089]
[1722143653965,0.00384,67362.0,67361.0,0.511089]
[1722143654185,0.00384,67362.0,67361.0,0.0763]
[1722143654409,0.00184,67362.0,67361.0,0.0763]
[1722143654855,0.00184,67362.0,67361.0,0.0863]
[1722143654856,0.02069151,67362.0,67361.0,0.0863]
[1722143655057,0.02069151,67362.0,67361.0,0.024]
[1722143655058,0.55296969,67362.0,67361.0,0.024]
[1722143655264,0.80934392,67362.0,67361.0,0.024]
[1722143655463,0.57182192,67362.0,67361.0,0.024]
[1722143656093,0.49669213,67362.0,67361.0,0.024]
[1722143656324,0.73302111,67362.0,67361.0,0.01]
[1722143656527,0.49549911,67362.0,67361.0,0.01]
[1722143656743,0.73803755,67362.0,67361.0,0.01]
[1722143656903,0.118769,67358.0,67354.0,0.0623]
[1722143657306,0.01883335,67357.0,67355.0,0.118773]
[1722143657555,0.01984,67362.0,67356.0,0.118771]
[1722143657760,0.13835032,67361.0,67356.0,0.118771]
[1722143657963,0.11950438,67360.0,67356.0,0.118771]
[1722143658163,0.01884392,67359.0,67356.0,0.118771]
[1722143658568,0.119602,67362.0,67356.0,0.118771]
[1722143658733,0.119602,67362.0,67357.0,0.356309]
[1722143658734,0.02383582,67358.0,67357.0,0.356309]
[1722143659140,0.005,67358.0,67357.0,0.356309]
[1722143659428,0.005,67358.0,67357.0,0.593849]
[1722143659627,0.006,67358.0,67357.0,0.356309]
[1722143659843,0.005,67358.0,67357.0,0.356309]
[1722143660044,0.00084,67362.0,67360.0,0.118763]
[1722143660261,0.00084,67362.0,67361.0,0.356289]
[1722143660505,0.00084,67362.0,67361.0,0.593815]
[1722143660705,0.00084,67362.0,67361.0,0.668915]
[1722143661371,0.00484,67362.0,67361.0,0.668915]
[1722143661618,0.00684,67362.0,67361.0,0.668915]
[1722143661836,0.00284,67362.0,67361.0,0.668915]
[1722143662056,0.00284,67362.0,67361.0,0.966441]
[1722143662533,0.00684,67362.0,67361.0,0.729915]
[1722143662732,0.00484,67362.0,67361.0,0.729915]
[1722143663096,0.00684,67362.0,67361.0,0.729915]
[1722143663300,0.00484,67362.0,67361.0,0.729915]
[1722143663700,0.00484,67362.0,67361.0,0.732915]
[1722143664266,0.00084,67362.0,67361.0,0.731915]
[1722143664476,0.00284,67362.0,67361.0,0.969441]
[1722143665961,0.00284,67362.0,67361.0,1.35722657]
[1722143666120,0.00084,67379.0,67378.0,0.118733]
[1722143666329,0.00084,67379.0,67378.0,0.593665]
[1722143666537,0.00084,67379.0,67378.0,0.831131]
[1722143667140,0.00084,67379.0,67378.0,0.832131]
[1722143667141,0.00984,67379.0,67378.0,0.832131]
[1722143667616,0.00984,67379.0,67378.0,0.831131]
[1722143667617,0.00084,67379.0,67378.0,0.831131]
[1722143667807,0.00084,67379.0,67378.0,1.06439057]
[1722143668017,0.00084,67379.0,67378.0,1.06839057]
[1722143668804,0.00084,67379.0,67378.0,1.38095657]
[1722143669006,0.00084,67379.0,67378.0,1.38595657]
[1722143669007,0.00184,67379.0,67378.0,1.38595657]
[1722143669432,0.00184,67379.0,67378.0,1.39995657]
[1722143670879,0.00184,67379.0,67378.0,1.50195657]
[1722143671214,0.00184,67379.0,67378.0,1.49995657]
[1722143671838,0.00184,67379.0,67378.0,1.50195657]
[1722143672950,0.00184,67379.0,67378.0,1.49995657]
[1722143674794,0.00184,67379.0,67378.0,1.50195657]
[1722143675924,0.00184,67379.0,67378.0,1.51080185]
[1722143676714,0.00184,67379.0,67378.0,1.50880185]
[1722143684217,0.00184,67379.0,67378.0,1.51080185]
[1722143688025,0.00837,67383.0,67382.0,1.070534]
[1722143688327,0.45077872,67406.0,67388.0,0.0604]
[1722143688492,0.45077872,67406.0,67398.0,0.830882]
[1722143688890,0.0794,67409.0,67398.0,0.693487]
[1722143689096,0.15452979,67409.0,67398.0,0.716487]
[1722143689301,0.0794,67398.0,67397.0,0.118699]
[1722143689499,0.0794,67398.0,67397.0,0.356098]
[1722143689680,0.09840626,67398.0,67397.0,0.593497]
[1722143689878,0.009,67399.0,67398.0,0.118697]
[1722143690103,0.009,67399.0,67398.0,0.593487]
[1722143690650,0.002,67399.0,67398.0,0.593487]
[1722143690842,0.003,67399.0,67398.0,0.607487]
[1722143691208,0.003,67399.0,67398.0,0.859882]
[1722143691639,0.003,67399.0,67398.0,0.622487]
[1722143692462,0.003,67399.0,67398.0,0.633487]
[1722143693218,0.003,67399.0,67398.0,0.870882]
[1722143695740,0.003,67399.0,67398.0,1.73943157]
[1722143695944,0.00837,67413.0,67398.0,0.62875957]
[1722143696148,0.00837,67413.0,67412.0,0.593365]
[1722143696373,0.00837,67413.0,67412.0,0.853711]
[1722143696374,0.13073901,67413.0,67412.0,0.853711]
[1722143696950,0.13373901,67413.0,67412.0,0.853711]
[1722143697353,0.01137,67413.0,67412.0,0.853711]
[1722143697553,0.01137,67413.0,67412.0,0.616365]
[1722143697554,0.13283731,67413.0,67412.0,0.616365]
[1722143697779,0.13283731,67413.0,67412.0,0.623365]
[1722143698392,0.13283731,67413.0,67412.0,0.625365]
[1722143698994,0.13283731,67413.0,67412.0,0.127673]
[1722143699309,0.21611565,67413.0,67412.0,0.009]
[1722143699874,0.21611565,67413.0,67412.0,0.127673]
[1722143700673,0.15137811,67413.0,67412.0,0.127673]
[1722143700997,0.13229977,67413.0,67412.0,0.127673]
[1722143701221,0.15138042,67413.0,67412.0,0.127673]
[1722143701448,0.15138042,67413.0,67412.0,0.365019]
[1722143703098,0.15174626,67413.0,67412.0,0.009]
[1722143703295,0.22824626,67413.0,67412.0,0.009]
[1722143703536,0.22824638,67413.0,67412.0,0.009]
[1722143703951,0.82160138,67413.0,67412.0,0.009]
[1722143704901,0.82160138,67413.0,67412.0,0.002]
[1722143704902,0.92322683,67413.0,67412.0,0.002]
[1722143705107,0.87195501,67413.0,67412.0,0.002]
[1722143705311,0.81860138,67413.0,67412.0,0.002]
[1722143705542,0.87195476,67413.0,67412.0,0.002]
[1722143705680,0.92322658,67413.0,67412.0,0.002]
[1722143705883,0.27859976,67413.0,67406.0,0.237366]
[1722143706155,0.12112923,67412.0,67403.0,0.237374]
[1722143706318,0.12112923,67412.0,67411.0,0.118674]
[1722143706798,0.12112923,67412.0,67411.0,0.356023]
[1722143707609,0.12412923,67412.0,67411.0,0.356023]
[1722143707815,0.12412923,67412.0,67411.0,0.118674]
[1722143708124,0.12412923,67412.0,67411.0,0.119674]
[1722143708320,0.12412923,67412.0,67411.0,0.357023]
[1722143708728,0.12412923,67412.0,67411.0,0.001]
[1722143709135,0.24280223,67412.0,67411.0,0.001]
[1722143709338,0.359019,67412.0,67411.0,0.001]
[1722143709545,0.121673,67412.0,67411.0,0.001]
[1722143709968,0.359019,67412.0,67411.0,0.001]
[1722143710356,0.121673,67412.0,67411.0,0.001]
[1722143710582,0.23735,67411.0,67401.0,0.00974968]
[1722143710784,0.23735,67411.0,67403.0,0.118688]
[1722143710966,0.118678,67409.0,67403.0,0.118688]
[1722143711168,0.118678,67409.0,67401.0,0.000924]
[1722143711169,0.237357,67409.0,67401.0,0.000924]
[1722143711368,0.1202342,67408.0,67401.0,0.000924]
[1722143711569,0.1202342,67408.0,67403.0,0.118688]
[1722143712117,0.237365,67407.0,67401.0,0.000924]
[1722143712355,0.118688,67404.0,67401.0,0.000924]
[1722143712487,0.118689,67403.0,67401.0,0.000924]
[1722143712826,0.1967442,67402.0,67401.0,0.000924]
[1722143713065,0.4341252,67402.0,67401.0,0.000924]
[1722143713339,0.907333,67402.0,67401.0,0.000924]
[1722143713548,1.02732513,67402.0,67401.0,0.002924]
[1722143713724,1.1775847,67402.0,67401.0,0.000924]
[1722143714100,1.1775847,67402.0,67401.0,0.008924]
[1722143714300,1.1775847,67402.0,67401.0,0.001924]
[1722143714642,1.19685137,67402.0,67401.0,0.001924]
[1722143714898,1.19685137,67402.0,67401.0,0.000924]
[1722143715767,1.20185137,67402.0,67401.0,0.000924]
[1722143716181,1.19685137,67402.0,67401.0,0.000924]
[1722143716378,1.20985137,67402.0,67401.0,0.001924]
[1722143717422,1.49099356,67402.0,67401.0,0.001924]
[1722143717621,1.44723237,67402.0,67401.0,0.001924]
[1722143717796,1.21140557,67402.0,67401.0,0.001924]
[1722143718432,1.20985137,67402.0,67401.0,0.001924]
[1722143718632,1.27549316,67402.0,67401.0,0.001924]
[1722143719036,1.51442836,67402.0,67401.0,0.001924]
[1722143719418,1.44878657,67402.0,67401.0,0.001924]
[1722143719617,1.44723237,67402.0,67401.0,0.001924]
[1722143720256,1.27545173,67402.0,67401.0,0.001924]
[1722143720621,1.20985137,67402.0,67401.0,0.001924]
[1722143721212,1.27545173,67402.0,67401.0,0.001924]
[1722143721408,1.21140557,67402.0,67401.0,0.001924]